[Event "Early-Titled-Tuesday-Blitz-January-16-2024"]
[Site "Chess.com"]
[Date "2024.01.16"]
[Round "2"]
[White "Road2GM3000"]
[Black "PawnEatingZombie"]
[Result "1-0"]
[WhiteElo "2463"]
[BlackElo "2127"]
[TimeControl "180+1"]
[EndTime "8:16:43 PST"]
[Termination "Road2GM3000 won on time"]

1. d4 {[%clk 0:03:00.9]} 1... Nf6 {[%clk 0:02:57.1]} 2. c4 {[%clk 0:03:01.4]}
2... g6 {[%clk 0:02:56.5]} 3. Nc3 {[%clk 0:03:00.5]} 3... Bg7 {[%clk 0:02:55.9]}
4. e4 {[%clk 0:03:01.1]} 4... d6 {[%clk 0:02:56.4]} 5. f4 {[%clk 0:03:01.4]}
5... O-O {[%clk 0:02:56]} 6. Nf3 {[%clk 0:03:02.1]} 6... c5 {[%clk 0:02:56]} 7.
d5 {[%clk 0:03:02.9]} 7... e6 {[%clk 0:02:56.5]} 8. Be2 {[%clk 0:03:03.6]} 8...
exd5 {[%clk 0:02:55.4]} 9. exd5 {[%clk 0:03:04.5]} 9... Re8 {[%clk 0:02:50.6]}
10. O-O {[%clk 0:03:05]} 10... Nbd7 {[%clk 0:02:46.5]} 11. Bd3 {[%clk
0:03:03.1]} 11... a6 {[%clk 0:02:35.2]} 12. a4 {[%clk 0:03:03.5]} 12... Ng4
{[%clk 0:01:50.1]} 13. Ne4 {[%clk 0:02:42.9]} 13... Ndf6 {[%clk 0:01:46.7]} 14.
Ng3 {[%clk 0:02:34.1]} 14... h5 {[%clk 0:01:36.7]} 15. f5 {[%clk 0:02:33.3]}
15... gxf5 {[%clk 0:00:25.1]} 16. Bxf5 {[%clk 0:02:16.6]} 16... Bxf5 {[%clk
0:00:24.3]} 17. Nxf5 {[%clk 0:02:17.2]} 17... Ne4 {[%clk 0:00:18.8]} 18. Bf4
{[%clk 0:02:04.1]} 18... Be5 {[%clk 0:00:15.2]} 19. Qc1 {[%clk 0:01:44.3]} 19...
Qf6 {[%clk 0:00:11.9]} 20. Bxe5 {[%clk 0:01:29.7]} 20... Nxe5 {[%clk 0:00:10.4]}
21. N3h4 {[%clk 0:01:29]} 21... Ng4 {[%clk 0:00:05.5]} 22. h3 {[%clk 0:01:26.8]}
22... Qd4+ {[%clk 0:00:05.3]} 23. Kh1 {[%clk 0:01:26]} 23... Ng3+ {[%clk
0:00:01.9]} 24. Nxg3 {[%clk 0:01:24.7]} 1-0

[Event "Early-Titled-Tuesday-Blitz-January-16-2024"]
[Site "Chess.com"]
[Date "2024.01.16"]
[Round "2"]
[White "almaguerjm"]
[Black "MikeSailer"]
[Result "1-0"]
[WhiteElo "2491"]
[BlackElo "2200"]
[TimeControl "180+1"]
[EndTime "8:16:44 PST"]
[Termination "almaguerjm won by resignation"]

1. e4 {[%clk 0:02:56.4]} 1... d5 {[%clk 0:02:59.2]} 2. exd5 {[%clk 0:02:55.9]}
2... Qxd5 {[%clk 0:02:58.9]} 3. Nc3 {[%clk 0:02:48.7]} 3... Qd6 {[%clk
0:02:56.4]} 4. Bc4 {[%clk 0:02:40.8]} 4... c6 {[%clk 0:02:55.8]} 5. d3 {[%clk
0:02:40.2]} 5... Nf6 {[%clk 0:02:55]} 6. Be3 {[%clk 0:02:38.4]} 6... Bg4 {[%clk
0:02:50.3]} 7. Qd2 {[%clk 0:02:36.8]} 7... e6 {[%clk 0:02:47.6]} 8. h3 {[%clk
0:02:32.8]} 8... Bh5 {[%clk 0:02:47.6]} 9. Nge2 {[%clk 0:02:30.6]} 9... Qc7
{[%clk 0:02:44.5]} 10. Bf4 {[%clk 0:02:28.4]} 10... Bd6 {[%clk 0:02:44.4]} 11.
Bxd6 {[%clk 0:02:27.4]} 11... Qxd6 {[%clk 0:02:44.7]} 12. g4 {[%clk 0:02:26.8]}
12... Bg6 {[%clk 0:02:44.7]} 13. O-O-O {[%clk 0:02:24.7]} 13... h6 {[%clk
0:02:30.5]} 14. Nf4 {[%clk 0:02:22.7]} 14... Bh7 {[%clk 0:02:30.5]} 15. Rde1
{[%clk 0:02:19.7]} 15... O-O {[%clk 0:01:53.2]} 16. Nxe6 {[%clk 0:02:13]} 16...
b5 {[%clk 0:01:36.2]} 17. Bb3 {[%clk 0:02:08.6]} 17... Re8 {[%clk 0:01:28.9]}
18. g5 {[%clk 0:01:46.7]} 18... Nd5 {[%clk 0:00:57.7]} 19. Nxd5 {[%clk
0:01:10.1]} 19... Rxe6 {[%clk 0:00:49.5]} 20. Rxe6 {[%clk 0:01:08.4]} 20... fxe6
{[%clk 0:00:46.6]} 21. Nf4 {[%clk 0:00:58.8]} 21... Bf5 {[%clk 0:00:46.7]} 22.
gxh6 {[%clk 0:00:48.6]} 1-0

[Event "Early-Titled-Tuesday-Blitz-January-16-2024"]
[Site "Chess.com"]
[Date "2024.01.16"]
[Round "2"]
[White "MagnusCarlsen"]
[Black "deepfear"]
[Result "1-0"]
[WhiteElo "3319"]
[BlackElo "1931"]
[TimeControl "180+1"]
[EndTime "8:16:45 PST"]
[Termination "MagnusCarlsen won by resignation"]

1. g4 {[%clk 0:03:00.9]} 1... g6 {[%clk 0:02:57.9]} 2. Bg2 {[%clk 0:02:59.7]}
2... Bg7 {[%clk 0:02:57.2]} 3. h4 {[%clk 0:02:58.9]} 3... h6 {[%clk 0:02:46.8]}
4. d4 {[%clk 0:02:54.4]} 4... d6 {[%clk 0:02:40.9]} 5. e4 {[%clk 0:02:51.2]}
5... Nc6 {[%clk 0:02:36.7]} 6. Be3 {[%clk 0:02:37]} 6... e6 {[%clk 0:02:07.1]}
7. Nc3 {[%clk 0:02:34.5]} 7... Nge7 {[%clk 0:02:03]} 8. Nge2 {[%clk 0:02:30.5]}
8... d5 {[%clk 0:01:52.9]} 9. e5 {[%clk 0:02:26.9]} 9... b6 {[%clk 0:01:44.7]}
10. h5 {[%clk 0:02:25.4]} 10... g5 {[%clk 0:01:39.5]} 11. Qd2 {[%clk 0:02:23.5]}
11... Ba6 {[%clk 0:01:35.2]} 12. f4 {[%clk 0:02:23.4]} 12... gxf4 {[%clk
0:01:22]} 13. Nxf4 {[%clk 0:02:23.4]} 13... Qd7 {[%clk 0:01:09.6]} 14. O-O-O
{[%clk 0:02:23.1]} 14... O-O-O {[%clk 0:00:58.8]} 15. Bf1 {[%clk 0:02:23.7]}
15... Bb7 {[%clk 0:00:58.1]} 16. Bd3 {[%clk 0:02:21.3]} 16... Nb4 {[%clk
0:00:57.9]} 17. Bb5 {[%clk 0:02:21.1]} 17... c6 {[%clk 0:00:57.1]} 18. Be2
{[%clk 0:02:20.2]} 18... Qc7 {[%clk 0:00:49.9]} 19. Rhf1 {[%clk 0:02:19.4]}
19... Rdf8 {[%clk 0:00:45]} 20. Rf2 {[%clk 0:02:17.5]} 20... c5 {[%clk
0:00:43.4]} 21. Nb5 {[%clk 0:02:16.4]} 21... Qb8 {[%clk 0:00:41.4]} 22. Nd6+
{[%clk 0:02:14.8]} 22... Kd7 {[%clk 0:00:36.6]} 23. dxc5 {[%clk 0:02:13.5]}
23... bxc5 {[%clk 0:00:32.2]} 24. Bxc5 {[%clk 0:02:14.4]} 24... Nbc6 {[%clk
0:00:30.8]} 25. Nd3 {[%clk 0:02:04.4]} 25... Bxe5 {[%clk 0:00:26.6]} 26. Nxf7
{[%clk 0:01:55.5]} 26... Bg3 {[%clk 0:00:18.3]} 27. Nxh8 {[%clk 0:01:55.6]}
27... Rxh8 {[%clk 0:00:15.6]} 28. Rf7 {[%clk 0:01:53.4]} 28... Rf8 {[%clk
0:00:10.8]} 29. Rdf1 {[%clk 0:01:49.7]} 29... Rxf7 {[%clk 0:00:09.8]} 30. Rxf7
{[%clk 0:01:50.6]} 30... Bd6 {[%clk 0:00:08.5]} 31. Qxh6 {[%clk 0:01:48.8]}
31... Bxc5 {[%clk 0:00:08.4]} 32. Nxc5+ {[%clk 0:01:48.7]} 32... Kc7 {[%clk
0:00:07.8]} 33. Qxe6 {[%clk 0:01:46.8]} 33... Kb6 {[%clk 0:00:06.3]} 34. Nd7+
{[%clk 0:01:46.5]} 1-0

[Event "Early-Titled-Tuesday-Blitz-January-16-2024"]
[Site "Chess.com"]
[Date "2024.01.16"]
[Round "2"]
[White "atalz0"]
[Black "Trojan-Knight"]
[Result "0-1"]
[WhiteElo "2461"]
[BlackElo "2482"]
[TimeControl "180+1"]
[EndTime "8:16:47 PST"]
[Termination "Trojan-Knight won by resignation"]

1. d4 {[%clk 0:02:07.4]} 1... Nf6 {[%clk 0:02:59.5]} 2. c4 {[%clk 0:02:06.5]}
2... g6 {[%clk 0:02:59.4]} 3. f3 {[%clk 0:02:06.4]} 3... Bg7 {[%clk 0:02:55.6]}
4. e4 {[%clk 0:02:06.3]} 4... d6 {[%clk 0:02:55.2]} 5. Be3 {[%clk 0:02:06.6]}
5... O-O {[%clk 0:02:55.8]} 6. Nc3 {[%clk 0:02:07.1]} 6... Nc6 {[%clk
0:02:55.4]} 7. Qd2 {[%clk 0:02:07.2]} 7... a6 {[%clk 0:02:54.9]} 8. O-O-O {[%clk
0:02:06.1]} 8... Rb8 {[%clk 0:02:55.2]} 9. h4 {[%clk 0:02:06.1]} 9... b5 {[%clk
0:02:41.2]} 10. h5 {[%clk 0:02:05.3]} 10... bxc4 {[%clk 0:02:27.2]} 11. hxg6
{[%clk 0:01:58.8]} 11... fxg6 {[%clk 0:02:11]} 12. Bxc4+ {[%clk 0:01:57]} 12...
e6 {[%clk 0:02:11.5]} 13. Bh6 {[%clk 0:01:46.9]} 13... Qe7 {[%clk 0:02:02.2]}
14. Bxg7 {[%clk 0:01:31.4]} 14... Qxg7 {[%clk 0:02:00.4]} 15. Nh3 {[%clk
0:01:31.9]} 15... Rb4 {[%clk 0:01:43.7]} 16. Qe2 {[%clk 0:01:15.6]} 16... Nh5
{[%clk 0:01:40.5]} 17. Bxe6+ {[%clk 0:00:31.5]} 17... Bxe6 {[%clk 0:01:38.3]}
18. d5 {[%clk 0:00:32.4]} 18... Bxh3 {[%clk 0:01:37]} 19. dxc6 {[%clk
0:00:25.4]} 19... Be6 {[%clk 0:01:30.8]} 20. Qxa6 {[%clk 0:00:19.2]} 20... Rfb8
{[%clk 0:01:27.8]} 21. Rd2 {[%clk 0:00:17.9]} 21... Rxb2 {[%clk 0:01:14.2]} 22.
Rxb2 {[%clk 0:00:13.4]} 22... Qxc3+ {[%clk 0:01:14.1]} 23. Rc2 {[%clk
0:00:14.2]} 23... Qa1+ {[%clk 0:01:14]} 24. Kd2 {[%clk 0:00:14.5]} 24... Qxh1
{[%clk 0:01:11.5]} 0-1

[Event "Early-Titled-Tuesday-Blitz-January-16-2024"]
[Site "Chess.com"]
[Date "2024.01.16"]
[Round "2"]
[White "Zavgorodniy_Sergiy"]
[Black "artin10862"]
[Result "0-1"]
[WhiteElo "2596"]
[BlackElo "2897"]
[TimeControl "180+1"]
[EndTime "8:16:53 PST"]
[Termination "artin10862 won by resignation"]

1. e4 {[%clk 0:03:00.9]} 1... c6 {[%clk 0:02:55.5]} 2. d4 {[%clk 0:03:00.1]}
2... d5 {[%clk 0:02:55.3]} 3. exd5 {[%clk 0:03:01]} 3... cxd5 {[%clk 0:02:56.2]}
4. c4 {[%clk 0:03:01.8]} 4... Nf6 {[%clk 0:02:52.5]} 5. Nc3 {[%clk 0:03:02.4]}
5... e6 {[%clk 0:02:52.2]} 6. Nf3 {[%clk 0:03:03]} 6... Bb4 {[%clk 0:02:49.8]}
7. cxd5 {[%clk 0:03:02.7]} 7... Nxd5 {[%clk 0:02:49.4]} 8. Bd2 {[%clk
0:03:02.8]} 8... Nc6 {[%clk 0:02:46.3]} 9. Bd3 {[%clk 0:03:03.2]} 9... O-O
{[%clk 0:02:42.7]} 10. O-O {[%clk 0:03:02.8]} 10... Nf6 {[%clk 0:02:42.9]} 11.
Bg5 {[%clk 0:03:01.5]} 11... Be7 {[%clk 0:02:39.8]} 12. Re1 {[%clk 0:02:54.3]}
12... h6 {[%clk 0:02:39.5]} 13. Bh4 {[%clk 0:02:49.6]} 13... Nh5 {[%clk
0:02:39.4]} 14. Bxe7 {[%clk 0:02:32.6]} 14... Nxe7 {[%clk 0:02:40.3]} 15. Bc2
{[%clk 0:02:25.1]} 15... Nf6 {[%clk 0:02:33.7]} 16. Ne5 {[%clk 0:02:22.4]} 16...
b6 {[%clk 0:02:32]} 17. Qf3 {[%clk 0:01:53.6]} 17... Rb8 {[%clk 0:02:31.5]} 18.
Rad1 {[%clk 0:01:54.2]} 18... Bb7 {[%clk 0:02:31.1]} 19. Qh3 {[%clk 0:01:54.8]}
19... Rc8 {[%clk 0:02:27.8]} 20. Re3 {[%clk 0:01:30.1]} 20... Kh8 {[%clk
0:02:03.7]} 21. Rg3 {[%clk 0:01:26.5]} 21... b5 {[%clk 0:02:02.6]} 22. Rdd3
{[%clk 0:01:17.8]} 22... Nf5 {[%clk 0:01:51.1]} 23. a3 {[%clk 0:00:59.8]} 23...
a5 {[%clk 0:01:49.2]} 24. Rdf3 {[%clk 0:00:38]} 24... Nxd4 {[%clk 0:01:36.9]}
25. Rxf6 {[%clk 0:00:30.5]} 25... Qxf6 {[%clk 0:01:33.2]} 26. Nd7 {[%clk
0:00:29.5]} 26... Qf4 {[%clk 0:01:26.1]} 27. Nxf8 {[%clk 0:00:24.8]} 27... Nxc2
{[%clk 0:01:21.1]} 0-1

[Event "Early-Titled-Tuesday-Blitz-January-16-2024"]
[Site "Chess.com"]
[Date "2024.01.16"]
[Round "2"]
[White "Kostya0705"]
[Black "GMRAVEN_ON_YOUTUBE"]
[Result "0-1"]
[WhiteElo "2559"]
[BlackElo "2824"]
[TimeControl "180+1"]
[EndTime "8:16:55 PST"]
[Termination "GMRAVEN_ON_YOUTUBE won by resignation"]

1. e4 {[%clk 0:03:00.2]} 1... c5 {[%clk 0:02:59.6]} 2. Nf3 {[%clk 0:02:58.8]}
2... e6 {[%clk 0:03:00]} 3. d4 {[%clk 0:02:58.9]} 3... cxd4 {[%clk 0:03:00.5]}
4. Nxd4 {[%clk 0:02:59.8]} 4... Nc6 {[%clk 0:03:00.6]} 5. Nc3 {[%clk 0:02:59.2]}
5... Qc7 {[%clk 0:03:01]} 6. g4 {[%clk 0:02:57.9]} 6... a6 {[%clk 0:02:55.4]} 7.
h4 {[%clk 0:02:57.2]} 7... b5 {[%clk 0:02:55.4]} 8. Nxc6 {[%clk 0:02:57.4]} 8...
Qxc6 {[%clk 0:02:55.4]} 9. a3 {[%clk 0:02:58.3]} 9... b4 {[%clk 0:02:54.7]} 10.
axb4 {[%clk 0:02:59.2]} 10... Bxb4 {[%clk 0:02:55.2]} 11. Qd4 {[%clk 0:02:56.3]}
11... Bxc3+ {[%clk 0:02:44.2]} 12. bxc3 {[%clk 0:02:57.2]} 12... Nf6 {[%clk
0:02:43.6]} 13. f3 {[%clk 0:02:56.1]} 13... O-O {[%clk 0:02:42.9]} 14. Ba3
{[%clk 0:02:42.6]} 14... Re8 {[%clk 0:02:42.6]} 15. g5 {[%clk 0:02:38.2]} 15...
Nh5 {[%clk 0:02:37]} 16. Bd6 {[%clk 0:02:32.1]} 16... e5 {[%clk 0:02:35.5]} 17.
Bxe5 {[%clk 0:02:29.8]} 17... d5 {[%clk 0:02:23.2]} 18. O-O-O {[%clk 0:02:11.7]}
18... dxe4 {[%clk 0:02:10.6]} 19. fxe4 {[%clk 0:02:10.9]} 19... Bg4 {[%clk
0:02:09.2]} 20. Rd2 {[%clk 0:02:03.5]} 20... Qe6 {[%clk 0:02:08.4]} 21. Bd6
{[%clk 0:01:04.7]} 21... Qa2 {[%clk 0:01:45.9]} 22. Rf2 {[%clk 0:01:04.6]} 22...
Rad8 {[%clk 0:01:11.7]} 23. Rg1 {[%clk 0:00:28.4]} 23... Qa1+ {[%clk 0:01:07.9]}
24. Kd2 {[%clk 0:00:28.4]} 24... Rxd6 {[%clk 0:01:07.1]} 25. Qxd6 {[%clk
0:00:19.8]} 25... Qd1+ {[%clk 0:01:07.5]} 26. Ke3 {[%clk 0:00:20.7]} 26... Qxd6
{[%clk 0:01:08.3]} 27. Bc4 {[%clk 0:00:21.5]} 27... Qc5+ {[%clk 0:01:08.2]} 0-1

[Event "Early-Titled-Tuesday-Blitz-January-16-2024"]
[Site "Chess.com"]
[Date "2024.01.16"]
[Round "2"]
[White "GeorgiosSouleidis"]
[Black "FairChess_on_YouTube"]
[Result "0-1"]
[WhiteElo "2657"]
[BlackElo "3078"]
[TimeControl "180+1"]
[EndTime "8:17:00 PST"]
[Termination "FairChess_on_YouTube won by checkmate"]

1. e4 {[%clk 0:03:00.9]} 1... c5 {[%clk 0:02:59.6]} 2. Be2 {[%clk 0:03:01.3]}
2... Nc6 {[%clk 0:02:53.2]} 3. d3 {[%clk 0:03:01.7]} 3... Nf6 {[%clk 0:02:42.4]}
4. f4 {[%clk 0:03:01.8]} 4... d5 {[%clk 0:02:42]} 5. e5 {[%clk 0:03:02.3]} 5...
Nd7 {[%clk 0:02:42.2]} 6. Nf3 {[%clk 0:03:02.7]} 6... Nb6 {[%clk 0:02:41.7]} 7.
O-O {[%clk 0:03:00.4]} 7... Bf5 {[%clk 0:02:41.1]} 8. a4 {[%clk 0:02:51]} 8...
e6 {[%clk 0:02:39.2]} 9. a5 {[%clk 0:02:48.5]} 9... Nd7 {[%clk 0:02:37.3]} 10.
a6 {[%clk 0:02:36.7]} 10... b5 {[%clk 0:02:29.7]} 11. c3 {[%clk 0:02:32.1]}
11... Be7 {[%clk 0:02:24.2]} 12. Na3 {[%clk 0:02:31.5]} 12... b4 {[%clk
0:02:21]} 13. Nc2 {[%clk 0:02:31.2]} 13... h6 {[%clk 0:02:17.7]} 14. Kh1 {[%clk
0:02:24.3]} 14... Rb8 {[%clk 0:02:15.2]} 15. Ne3 {[%clk 0:02:10.1]} 15... Bh7
{[%clk 0:02:14.8]} 16. d4 {[%clk 0:02:03.1]} 16... bxc3 {[%clk 0:02:09.8]} 17.
bxc3 {[%clk 0:02:03.1]} 17... O-O {[%clk 0:02:08.3]} 18. Bd3 {[%clk 0:01:57.3]}
18... Bxd3 {[%clk 0:01:57.5]} 19. Qxd3 {[%clk 0:01:58.2]} 19... f5 {[%clk
0:01:49.6]} 20. exf6 {[%clk 0:01:50.7]} 20... Nxf6 {[%clk 0:01:46.6]} 21. Ba3
{[%clk 0:01:34.2]} 21... c4 {[%clk 0:01:39.3]} 22. Qg6 {[%clk 0:01:28.6]} 22...
Qe8 {[%clk 0:01:36.9]} 23. Qxe8 {[%clk 0:01:23.6]} 23... Rfxe8 {[%clk
0:01:36.8]} 24. Bxe7 {[%clk 0:01:21.8]} 24... Rxe7 {[%clk 0:01:34.9]} 25. f5
{[%clk 0:00:45.6]} 25... Rb3 {[%clk 0:01:31.9]} 26. Rfc1 {[%clk 0:00:14.7]}
26... e5 {[%clk 0:01:31.8]} 27. dxe5 {[%clk 0:00:10.4]} 27... Nxe5 {[%clk
0:01:32.7]} 28. Nd2 {[%clk 0:00:03.8]} 28... Nd3 {[%clk 0:01:31]} 29. Nxb3
{[%clk 0:00:02.4]} 29... cxb3 {[%clk 0:01:31.9]} 30. Nd1 {[%clk 0:00:01.1]}
30... Re1# {[%clk 0:01:30.6]} 0-1

[Event "Early-Titled-Tuesday-Blitz-January-16-2024"]
[Site "Chess.com"]
[Date "2024.01.16"]
[Round "2"]
[White "CrushingKings"]
[Black "Talent-OF-Slovenia"]
[Result "1-0"]
[WhiteElo "2664"]
[BlackElo "2377"]
[TimeControl "180+1"]
[EndTime "8:17:00 PST"]
[Termination "CrushingKings won by resignation"]

1. Nf3 {[%clk 0:03:00.9]} 1... c6 {[%clk 0:02:54.7]} 2. g3 {[%clk 0:02:59.9]}
2... d5 {[%clk 0:02:54.6]} 3. Bg2 {[%clk 0:03:00.8]} 3... Nf6 {[%clk 0:02:53.1]}
4. O-O {[%clk 0:03:01.1]} 4... Bf5 {[%clk 0:02:53]} 5. d3 {[%clk 0:03:00.7]}
5... e6 {[%clk 0:02:52.9]} 6. c4 {[%clk 0:03:01.3]} 6... Be7 {[%clk 0:02:50.4]}
7. cxd5 {[%clk 0:03:00.5]} 7... exd5 {[%clk 0:02:50]} 8. Nh4 {[%clk 0:02:59.8]}
8... Bg6 {[%clk 0:02:48.9]} 9. Nxg6 {[%clk 0:02:59.5]} 9... hxg6 {[%clk
0:02:49.8]} 10. e4 {[%clk 0:02:59.8]} 10... dxe4 {[%clk 0:02:47.4]} 11. dxe4
{[%clk 0:02:59.5]} 11... Nbd7 {[%clk 0:02:47.6]} 12. f4 {[%clk 0:02:43.9]} 12...
O-O {[%clk 0:02:28.1]} 13. Nc3 {[%clk 0:02:26.2]} 13... Nc5 {[%clk 0:02:17.1]}
14. e5 {[%clk 0:02:16.7]} 14... Nfd7 {[%clk 0:02:13.2]} 15. Be3 {[%clk
0:02:13.9]} 15... Ne6 {[%clk 0:02:11.2]} 16. Qc2 {[%clk 0:02:07.8]} 16... Bc5
{[%clk 0:02:01.6]} 17. Bxc5 {[%clk 0:02:07]} 17... Ndxc5 {[%clk 0:02:02.5]} 18.
Rad1 {[%clk 0:02:07.1]} 18... Qb6 {[%clk 0:02:02.2]} 19. Kh1 {[%clk 0:02:06.5]}
19... Rfd8 {[%clk 0:02:01.3]} 20. h4 {[%clk 0:01:46.7]} 20... Nd4 {[%clk
0:01:57.3]} 21. Qf2 {[%clk 0:01:45.4]} 21... Nce6 {[%clk 0:01:54.3]} 22. g4
{[%clk 0:01:39.2]} 22... Nc7 {[%clk 0:01:06.2]} 23. f5 {[%clk 0:01:30.2]} 23...
gxf5 {[%clk 0:01:06.2]} 24. gxf5 {[%clk 0:01:30.4]} 24... Ndb5 {[%clk
0:00:59.8]} 25. Qg3 {[%clk 0:01:28.1]} 25... Nxc3 {[%clk 0:00:46.8]} 26. bxc3
{[%clk 0:01:27.6]} 26... Qc5 {[%clk 0:00:32.2]} 27. f6 {[%clk 0:01:23.6]} 27...
Ne6 {[%clk 0:00:31.9]} 28. Bh3 {[%clk 0:01:23.7]} 28... g6 {[%clk 0:00:15.3]}
29. Bxe6 {[%clk 0:01:23.2]} 29... Re8 {[%clk 0:00:10.6]} 30. Qxg6+ {[%clk
0:01:22.8]} 1-0

[Event "Early-Titled-Tuesday-Blitz-January-16-2024"]
[Site "Chess.com"]
[Date "2024.01.16"]
[Round "2"]
[White "Druid24"]
[Black "Bekkedahl"]
[Result "1-0"]
[WhiteElo "2711"]
[BlackElo "2299"]
[TimeControl "180+1"]
[EndTime "8:17:01 PST"]
[Termination "Druid24 won by resignation"]

1. Nf3 {[%clk 0:03:00.9]} 1... Nf6 {[%clk 0:01:23.1]} 2. g3 {[%clk 0:02:34.8]}
2... g6 {[%clk 0:01:23.7]} 3. Bg2 {[%clk 0:02:34.9]} 3... Bg7 {[%clk 0:01:24.5]}
4. O-O {[%clk 0:02:35.8]} 4... O-O {[%clk 0:01:24.7]} 5. d4 {[%clk 0:02:36.7]}
5... d6 {[%clk 0:01:25.2]} 6. b3 {[%clk 0:02:36.8]} 6... c6 {[%clk 0:01:25.9]}
7. Bb2 {[%clk 0:02:36.7]} 7... Nbd7 {[%clk 0:01:26.5]} 8. Re1 {[%clk 0:02:29.9]}
8... Rb8 {[%clk 0:01:27.1]} 9. e4 {[%clk 0:02:28.9]} 9... c5 {[%clk 0:01:26.7]}
10. e5 {[%clk 0:02:24.4]} 10... dxe5 {[%clk 0:01:25.6]} 11. dxe5 {[%clk
0:02:25.3]} 11... Ne8 {[%clk 0:01:25.2]} 12. Nbd2 {[%clk 0:02:23.6]} 12... Nc7
{[%clk 0:01:23.4]} 13. Qe2 {[%clk 0:02:19.9]} 13... Ne6 {[%clk 0:01:24]} 14.
Rad1 {[%clk 0:02:15.5]} 14... Qc7 {[%clk 0:01:24]} 15. h4 {[%clk 0:01:58]} 15...
b6 {[%clk 0:01:22.7]} 16. Ng5 {[%clk 0:01:47.1]} 16... Bb7 {[%clk 0:01:13.9]}
17. Nxe6 {[%clk 0:01:43.2]} 17... fxe6 {[%clk 0:01:14.8]} 18. f4 {[%clk
0:01:42.9]} 18... Bxg2 {[%clk 0:01:08.1]} 19. Qxg2 {[%clk 0:01:43.8]} 19... b5
{[%clk 0:01:06.3]} 20. Ne4 {[%clk 0:01:41.7]} 20... h6 {[%clk 0:01:02.1]} 21. h5
{[%clk 0:01:39.7]} 21... gxh5 {[%clk 0:01:00]} 22. Qh3 {[%clk 0:01:40]} 22...
Rb6 {[%clk 0:00:55.9]} 23. Qxh5 {[%clk 0:01:36.5]} 23... c4 {[%clk 0:00:46.2]}
24. Bd4 {[%clk 0:01:34.4]} 24... Rc6 {[%clk 0:00:39.6]} 25. Qg6 {[%clk
0:01:31.4]} 25... cxb3 {[%clk 0:00:28]} 26. cxb3 {[%clk 0:01:32.3]} 26... Rc2
{[%clk 0:00:27.5]} 27. Qxe6+ {[%clk 0:01:29.2]} 27... Kh8 {[%clk 0:00:28]} 28.
Qxe7 {[%clk 0:01:16.6]} 28... Qc6 {[%clk 0:00:27.5]} 29. e6 {[%clk 0:01:10.9]}
29... Nf6 {[%clk 0:00:24.2]} 30. Bxf6 {[%clk 0:01:06.1]} 30... Bxf6 {[%clk
0:00:24.9]} 31. Qxf8+ {[%clk 0:01:05.2]} 1-0

[Event "Early-Titled-Tuesday-Blitz-January-16-2024"]
[Site "Chess.com"]
[Date "2024.01.16"]
[Round "2"]
[White "bazar-wokzal"]
[Black "Pawnpusher1245"]
[Result "1-0"]
[WhiteElo "2605"]
[BlackElo "2358"]
[TimeControl "180+1"]
[EndTime "8:17:02 PST"]
[Termination "bazar-wokzal won by resignation"]

1. e4 {[%clk 0:03:00.9]} 1... g6 {[%clk 0:03:00.1]} 2. Nc3 {[%clk 0:03:00.3]}
2... Bg7 {[%clk 0:03:00.6]} 3. h4 {[%clk 0:03:00.1]} 3... h5 {[%clk 0:02:56.9]}
4. Nf3 {[%clk 0:02:59.7]} 4... c6 {[%clk 0:02:56.2]} 5. Ng5 {[%clk 0:02:58.9]}
5... d5 {[%clk 0:02:51.1]} 6. d4 {[%clk 0:02:56.8]} 6... dxe4 {[%clk 0:02:44.4]}
7. Bc4 {[%clk 0:02:55.5]} 7... Nh6 {[%clk 0:02:33]} 8. Be3 {[%clk 0:02:51.9]}
8... Bg4 {[%clk 0:02:19.2]} 9. Qd2 {[%clk 0:02:50.7]} 9... Nd7 {[%clk
0:02:13.4]} 10. Ncxe4 {[%clk 0:02:45.3]} 10... O-O {[%clk 0:02:02.5]} 11. f3
{[%clk 0:02:38.7]} 11... Bf5 {[%clk 0:02:01.3]} 12. O-O-O {[%clk 0:01:45.9]}
12... a5 {[%clk 0:01:32.9]} 13. g4 {[%clk 0:01:45.2]} 13... hxg4 {[%clk
0:01:15.7]} 14. h5 {[%clk 0:01:44.9]} 14... b5 {[%clk 0:01:12.7]} 15. Bd3 {[%clk
0:01:35.9]} 15... Nf6 {[%clk 0:00:51.5]} 16. hxg6 {[%clk 0:01:30.7]} 16... Bxg6
{[%clk 0:00:51.4]} 17. Nxf6+ {[%clk 0:01:29]} 17... exf6 {[%clk 0:00:41.6]} 18.
Bxg6 {[%clk 0:01:28.6]} 18... fxg6 {[%clk 0:00:24]} 19. Ne6 {[%clk 0:01:27.4]}
19... Qd5 {[%clk 0:00:23.8]} 20. Nxf8 {[%clk 0:01:17.2]} 20... Qxa2 {[%clk
0:00:22.7]} 21. c3 {[%clk 0:01:13.7]} 21... Qa1+ {[%clk 0:00:09]} 22. Kc2 {[%clk
0:01:11.9]} 22... Qa4+ {[%clk 0:00:09.6]} 23. Kb1 {[%clk 0:01:12.1]} 23... Bxf8
{[%clk 0:00:06.4]} 24. Bxh6 {[%clk 0:01:10.9]} 1-0